bitfinex/quotes_ETHUSD_20251218
["timestamp","ask_amount","ask_price","bid_price","bid_amount"]
[1766077680889,0.08294596,2897.1,2895.8,10.576]
[1766077681059,0.08294596,2896.7,2895.3,0.3388]
[1766077681247,0.08294596,2896.1,2894.9,0.001]
[1766077681455,0.08294596,2896.1,2893.8,0.3388]
[1766077681456,0.08294596,2895.1,2893.8,0.3388]
[1766077681701,0.08294596,2894.2,2893.3,0.003]
[1766077681986,0.632,2894.3,2892.4,3.4911]
[1766077682185,10.0,2895.7,2893.8,3.4911]
[1766077682186,0.08294596,2895.6,2893.8,3.4911]
[1766077682385,3.738,2895.6,2893.8,0.3388]
[1766077682585,3.738,2895.6,2893.7,3.45578325]
[1766077682586,0.08294596,2895.3,2893.7,3.45578325]
[1766077682763,3.35394596,2894.5,2893.1,0.3388]
[1766077682968,0.08294596,2893.7,2892.5,0.001]
[1766077683285,9.21815993,2893.9,2892.6,0.3388]
[1766077683286,0.632,2893.9,2892.6,0.3388]
[1766077683594,3.271,2896.3,2894.2,0.3388]
[1766077683798,3.904,2896.7,2894.9,0.3388]
[1766077684090,3.271,2896.2,2894.9,0.3388]
[1766077684305,8.334,2896.1,2894.9,0.3388]
[1766077684451,0.08294596,2896.3,2894.4,0.3388]
[1766077684452,13.733,2895.9,2894.4,0.3388]
[1766077684786,13.271,2895.4,2893.6,0.3388]
[1766077684949,30.0,2895.2,2893.7,0.3388]
[1766077685154,30.0,2895.2,2892.6,0.633]
[1766077685155,30.0,2894.5,2892.6,0.633]
[1766077685473,3.271,2893.8,2892.5,0.001]
[1766077685654,31.01454878,2893.8,2892.6,0.3388]
[1766077685859,30.0,2893.6,2892.5,0.001]
[1766077686094,0.08294596,2893.3,2892.5,0.001]
[1766077686294,30.0,2893.3,2892.5,0.001]
[1766077686595,0.08294596,2893.7,2892.0,0.9718]
[1766077686596,3.271,2893.2,2892.0,0.9718]
[1766077686792,30.0,2893.6,2892.1,0.3388]
[1766077686968,8.964,2893.6,2892.2,0.3388]
[1766077687163,8.964,2893.6,2891.5,3.4911]
[1766077687164,0.08294596,2893.1,2890.0,0.08294596]
[1766077687363,30.0,2893.5,2892.1,0.3388]
[1766077687564,0.08294596,2893.4,2892.1,0.3388]
[1766077687780,0.08294596,2893.3,2892.1,0.3388]
[1766077687982,0.08294596,2893.6,2892.1,0.3388]
[1766077688302,0.08294596,2893.6,2891.5,0.46438023]
[1766077688303,0.08294596,2892.4,2890.5,0.3388]
[1766077688599,9.13521397,2893.8,2891.1,0.3388]
[1766077688785,30.0,2894.1,2892.5,0.3388]
[1766077688964,0.08294596,2894.4,2892.0,0.633]
[1766077688965,0.08294596,2893.2,2892.0,0.633]
[1766077689165,0.08294596,2893.7,2892.2,0.3388]
[1766077689392,2.832,2893.8,2892.4,0.3388]
[1766077689561,0.08294596,2894.0,2892.4,0.3388]
[1766077689767,0.08294596,2894.0,2892.3,0.45506512]
[1766077689768,0.08294596,2894.2,2892.7,0.3388]
[1766077689965,0.08294596,2894.2,2892.5,0.001]
[1766077689966,0.002,2893.3,2892.5,0.001]
[1766077690166,0.48844996,2894.0,2892.5,0.001]
[1766077690167,3.271,2894.3,2892.8,0.3388]
[1766077690394,3.271,2894.3,2892.7,3.4569779]
[1766077690395,0.08294596,2894.7,2893.2,0.3388]
[1766077690590,0.08294596,2894.9,2893.2,0.3388]
[1766077690776,0.08294596,2895.6,2893.5,3.4911]
[1766077690989,0.08294596,2896.2,2894.2,0.3388]
[1766077691191,3.271,2895.4,2893.5,0.3388]
[1766077691377,0.3353946,2895.3,2893.8,0.3388]
[1766077692090,0.3353946,2895.3,2893.4,3.4911]
[1766077692091,11.588,2894.5,2893.4,0.633]
[1766077692290,3.271,2894.5,2893.4,0.633]
[1766077692491,0.08294596,2894.4,2893.2,0.3388]
[1766077692792,0.08294596,2894.2,2893.2,0.3388]
[1766077693000,0.08294596,2893.5,2892.5,0.001]
[1766077693312,0.08294596,2892.6,2891.6,0.3412]
[1766077693613,3.52254596,2892.8,2891.6,0.632]
[1766077693816,0.08294596,2893.2,2891.8,0.3412]
[1766077694028,0.08294596,2892.8,2891.9,0.3412]
[1766077694194,0.08294596,2892.9,2891.9,0.9732]
[1766077694397,3.52254596,2893.1,2891.9,0.9732]
[1766077694600,0.08294596,2892.7,2891.9,0.632]
[1766077694829,0.08294596,2892.9,2891.9,0.632]
[1766077694987,0.08294596,2893.0,2891.9,0.9732]
[1766077695182,0.08294596,2893.0,2890.6,3.84241092]
[1766077695183,0.08294596,2892.5,2890.7,0.3412]
[1766077695388,3.52254596,2892.8,2891.3,0.3412]
[1766077695589,0.08294596,2892.6,2891.4,0.632]
[1766077695887,0.08294596,2893.0,2891.6,0.3412]
[1766077696091,0.08294596,2892.5,2891.6,0.3412]
[1766077696289,0.08294596,2892.0,2890.0,0.3412]
[1766077696487,0.08294596,2892.0,2890.3,3.45982227]
[1766077696711,0.08294596,2892.1,2890.8,0.3412]
[1766077696912,0.08294596,2891.9,2890.9,0.631]
[1766077697118,0.08294596,2891.9,2890.1,0.3412]
[1766077697119,0.08294596,2891.7,2890.1,0.3412]
[1766077697320,0.08294596,2891.7,2890.0,0.3412]
[1766077697321,3.9,2891.2,2890.0,0.3412]
[1766077697491,0.08294596,2892.5,2890.4,3.193]
[1766077697690,0.08294596,2892.5,2890.6,0.3412]
[1766077697691,0.08294596,2891.9,2890.6,0.3412]
[1766077698017,0.08294596,2891.5,2890.7,0.631]
[1766077698187,0.08294596,2891.9,2889.5,3.193]
[1766077698188,3.4396,2891.3,2889.6,0.3412]
[1766077698388,3.4396,2891.7,2890.3,0.3412]
[1766077698620,3.4396,2891.7,2888.7,1.87589041]
[1766077698621,0.54732619,2891.8,2890.5,0.3412]
[1766077698924,0.08294596,2891.2,2890.6,0.632]
[1766077699225,3.4396,2892.0,2890.7,0.632]
[1766077699393,0.405504,2891.3,2890.0,0.001]
[1766077699721,33.4396,2891.1,2890.0,0.001]
[1766077699927,0.08294596,2891.4,2890.1,0.632]
[1766077700135,3.4396,2892.5,2890.5,3.193]
[1766077700428,0.08294596,2891.5,2890.6,0.632]
[1766077700630,0.08294596,2891.5,2890.2,3.193]
[1766077700933,0.08294596,2891.5,2890.0,0.001]
[1766077700934,8.6076,2890.8,2890.0,0.001]
[1766077701141,0.08294596,2890.1,2888.0,3.193]
[1766077701344,0.08294596,2890.5,2889.3,0.3412]
[1766077701640,3.52254596,2890.6,2889.5,0.3412]
[1766077701844,0.08294596,2891.0,2889.5,0.3412]
[1766077702151,3.4396,2891.4,2889.7,0.3412]
[1766077702317,0.08294596,2890.9,2890.0,0.3412]
[1766077702522,0.08294596,2888.2,2887.4,3.49977108]
[1766077702722,0.08294596,2888.4,2887.4,3.15857108]
[1766077702723,0.08294596,2887.9,2887.4,3.15857108]
[1766077703030,1.72051934,2890.0,2887.1,0.635]
[1766077703228,10.46438023,2889.1,2887.2,3.193]
[1766077703406,10.46438023,2889.1,2886.2,3.54766416]
[1766077703407,27.494,2889.1,2887.4,6.9266468]
[1766077703610,16.413,2889.7,2887.5,3.828]
[1766077703811,3.52254596,2890.4,2888.0,0.86988423]
[1766077704152,3.4396,2891.2,2889.0,3.193]
[1766077704445,10.3522546,2891.4,2889.2,3.65738023]
[1766077704656,0.3522546,2891.4,2889.6,0.46438023]
[1766077704938,0.3522546,2891.4,2889.4,0.08294596]
[1766077704939,3.4396,2892.4,2890.2,0.3412]
[1766077705140,0.08294596,2891.8,2890.4,0.3412]
[1766077705442,3.4396,2892.5,2890.6,3.193]
[1766077705609,9.13521397,2891.7,2890.4,0.3412]
[1766077705813,9.13521397,2891.7,2889.4,0.54732619]
[1766077705814,30.0,2891.3,2889.5,0.3412]
[1766077706033,7.0096,2891.2,2889.6,3.193]
[1766077706232,0.9135214,2891.6,2889.9,0.3412]
[1766077706436,13.54053602,2892.2,2890.3,0.3412]
[1766077706643,3.4396,2892.3,2890.5,0.3412]
[1766077706912,3.4396,2891.7,2890.6,0.637]
[1766077707224,0.08294596,2892.2,2890.7,0.3412]
[1766077707443,1.75163931,2893.6,2891.1,3.193]
[1766077707444,8.88,2892.9,2891.1,3.193]
[1766077707603,8.88,2892.9,2890.3,0.03459848]
[1766077707604,0.8962946,2892.8,2891.3,0.3412]
[1766077707809,0.8962946,2892.8,2891.5,0.3412]
[1766077708010,3.53748886,2894.8,2891.4,0.71994596]
[1766077708011,3.4396,2893.9,2891.4,0.71994596]
[1766077708245,0.08294596,2894.4,2892.1,0.3412]
[1766077708453,0.08294596,2893.9,2892.5,0.3412]
[1766077708656,0.08294596,2893.8,2892.5,0.3412]
[1766077708862,0.002,2893.5,2892.6,0.9782]
[1766077709013,0.08294596,2893.2,2892.7,0.636]
[1766077709353,0.08294596,2893.2,2891.2,0.78368023]
[1766077709354,0.002,2893.5,2892.6,0.3412]
[1766077709759,0.002,2893.5,2892.7,0.636]
[1766077709940,0.08294596,2893.2,2892.0,0.3412]
[1766077710125,0.08294596,2892.7,2891.3,0.3412]
[1766077710315,3.52254596,2892.5,2891.4,0.636]
[1766077710517,0.08294596,2892.2,2890.5,3.193]
[1766077710740,0.08294596,2891.8,2890.6,0.9772]
[1766077711053,0.08294596,2891.6,2890.6,0.636]
[1766077711223,0.08294596,2891.2,2890.7,0.636]
[1766077711424,0.08294596,2891.2,2888.4,3.193]
[1766077711425,0.08294596,2891.0,2888.4,3.193]
[1766077711649,0.08294596,2890.6,2888.9,3.5342]
[1766077711945,0.08294596,2890.6,2888.6,3.46178032]
[1766077711946,0.08294596,2890.2,2889.2,0.3412]
[1766077712150,0.08294596,2890.0,2889.3,0.636]
[1766077712319,0.08294596,2889.8,2888.6,0.3412]
[1766077712514,0.08294596,2890.2,2888.8,0.3412]
[1766077712825,12.65775993,2890.6,2889.2,3.46115141]
[1766077712826,3.52254596,2890.6,2889.2,3.46115141]
[1766077713152,3.52254596,2891.4,2889.9,0.3412]
[1766077713347,0.08294596,2891.3,2890.1,0.3412]
[1766077713550,0.44349515,2891.6,2890.1,0.3412]
[1766077713846,0.08294596,2891.9,2890.3,0.3412]
[1766077714058,0.08294596,2891.4,2890.3,0.3412]
[1766077714246,0.08294596,2891.7,2890.6,0.3412]
[1766077714462,10.08294596,2892.5,2890.8,0.3412]
[1766077714673,10.08294596,2892.5,2890.5,13.83843624]
[1766077714674,9.13521397,2893.1,2891.4,3.193]
[1766077714955,0.002,2893.5,2891.9,0.3412]
[1766077715261,0.08294596,2893.2,2892.0,0.9762]
[1766077715555,0.08294596,2892.8,2892.1,0.635]
[1766077715776,0.08294596,2892.8,2890.7,0.3412]
[1766077715777,0.08294596,2892.3,2890.7,0.3412]
[1766077715919,0.08294596,2891.9,2890.7,0.3412]
[1766077716117,3.52254596,2891.9,2890.8,0.634]
[1766077716325,0.08294596,2891.8,2890.7,0.3412]
[1766077716550,0.08294596,2891.8,2890.8,0.634]
[1766077716852,3.4396,2891.9,2890.8,0.634]
[1766077717054,26.234,2892.1,2890.9,0.3412]
[1766077717252,0.002,2893.5,2891.6,0.3412]
[1766077717550,0.002,2893.5,2892.1,0.3412]
[1766077717846,0.002,2893.5,2892.4,0.3412]
[1766077718029,0.002,2893.5,2892.6,0.3412]
[1766077718228,0.002,2893.5,2892.5,0.634]
[1766077718457,3.4416,2893.5,2892.0,0.3412]
[1766077718668,9.13521397,2893.0,2890.7,0.46438023]
[1766077718818,12.57481397,2893.0,2891.3,0.3412]
[1766077719130,13.4396,2892.7,2891.4,0.633]
[1766077719456,3.52254596,2892.5,2891.5,0.633]
[1766077719752,0.54732619,2893.2,2891.6,0.3412]
[1766077719927,0.54732619,2893.2,2891.5,0.3412]
[1766077719928,0.96825402,2893.1,2891.5,0.3412]
[1766077720129,0.96825402,2893.1,2890.8,0.3412]
[1766077720130,0.08294596,2892.4,2890.8,0.3412]
[1766077720318,0.08294596,2891.9,2890.8,0.3412]
[1766077720519,0.08294596,2891.7,2890.9,0.633]
[1766077720921,3.45757554,2892.2,2890.9,0.633]
[1766077721175,0.34575755,2892.1,2890.9,0.633]
[1766077721468,0.71594596,2893.0,2890.9,0.633]
[1766077721469,12.57481397,2893.2,2891.2,3.193]
[1766077721766,12.57481397,2893.2,2891.5,3.193]
[1766077721933,3.52254596,2893.1,2891.6,0.9732]
[1766077722122,0.08294596,2892.9,2891.7,0.3412]
[1766077722326,0.08294596,2892.5,2891.7,0.3412]
[1766077722654,9.13521397,2892.6,2891.8,0.632]
[1766077722864,0.9135214,2892.5,2891.8,0.632]
[1766077723031,0.08294596,2893.2,2891.9,0.3584]
[1766077723356,2.8333,2893.0,2892.0,0.632]
[1766077723657,0.002,2893.5,2892.1,0.3584]
[1766077723830,0.002,2893.5,2892.4,0.3584]
[1766077724444,0.002,2893.5,2892.5,0.3584]
[1766077724624,0.002,2893.5,2892.6,0.632]
[1766077724825,0.002,2893.5,2892.6,0.9904]
[1766077725023,0.002,2893.5,2892.6,0.632]
[1766077725227,0.002,2893.5,2892.7,0.3584]
[1766077726034,0.7662696,2893.5,2892.8,0.631]
[1766077726332,0.002,2894.3,2892.8,4.0878584]
[1766077726530,30.0,2895.5,2893.7,0.3584]
[1766077726755,15.036,2895.0,2893.7,0.3584]
[1766077726944,7.64069597,2894.6,2893.7,0.3584]
[1766077727142,2.8333,2894.9,2893.8,0.631]
[1766077727538,10.47399597,2894.5,2893.6,0.631]
[1766077727835,10.47399597,2894.5,2893.7,0.631]
[1766077728058,2.8333,2894.5,2893.7,0.631]
[1766077728259,0.28333,2894.4,2893.7,0.631]
[1766077728772,3.91861166,2895.0,2893.7,0.631]
[1766077728982,2.91624596,2894.8,2893.5,0.3584]
[1766077729134,3.238804,2894.4,2892.9,0.3584]
[1766077729333,2.91624596,2894.4,2893.5,0.63]
[1766077729530,0.405504,2894.3,2893.3,0.63]
[1766077729839,0.08294596,2893.7,2892.2,0.3584]
[1766077730042,3.76488302,2893.6,2892.3,0.9884]
[1766077730269,2.8333,2893.6,2892.4,0.3584]
[1766077730475,17.38604019,2893.5,2892.4,0.3584]
[1766077730832,17.38604019,2893.5,2892.4,0.9884]
[1766077731281,13.93001808,2893.5,2892.4,0.9884]
[1766077731770,17.38604019,2893.5,2892.4,0.63]
[1766077731984,11.73860402,2893.4,2892.4,0.63]
[1766077732177,0.08294596,2893.2,2891.1,3.236]
[1766077732357,7.64069597,2892.2,2891.3,0.629]
[1766077733244,6.99761888,2892.4,2891.3,0.629]
[1766077733443,2.8333,2892.2,2890.8,3.81864071]
[1766077733645,10.47399597,2892.2,2890.8,0.9874]
[1766077733861,0.08294596,2892.1,2890.8,0.9874]
[1766077734065,2.91624596,2891.9,2890.8,0.629]
[1766077734280,2.8333,2891.9,2890.8,0.629]
[1766077734449,5.589,2892.7,2891.0,2.8776]
[1766077734781,5.589,2892.7,2891.1,0.3584]
[1766077734782,18.12914593,2892.5,2891.1,0.3584]
[1766077734940,2.8333,2892.4,2891.1,0.3584]
[1766077735138,0.46438023,2892.3,2890.8,0.629]
[1766077735378,12.8333,2891.9,2890.8,0.001]
[1766077735683,2.8333,2891.7,2890.8,0.001]
[1766077736039,7.64069597,2892.1,2890.8,0.001]
[1766077736485,9.74892932,2892.0,2890.8,0.001]
[1766077736780,2.8333,2891.9,2890.8,0.001]
[1766077737343,10.08294596,2892.0,2887.3,3.2604]
[1766077737344,0.08294596,2890.6,2887.3,3.2604]
[1766077737646,0.08294596,2890.6,2887.3,0.3828]
[1766077737647,2.8333,2888.8,2887.3,0.3828]
[1766077737848,2.8333,2888.8,2886.1,0.08294596]
[1766077737849,7.64069597,2887.6,2885.6,2.8776]
[1766077738171,2.8333,2888.2,2886.2,2.8776]
[1766077738342,0.08294596,2888.2,2886.6,2.8776]
[1766077738535,4.331,2888.2,2887.2,2.8776]
[1766077738736,4.331,2888.2,2886.7,0.628]
[1766077738737,0.08294596,2890.0,2887.3,0.08294596]
[1766077738936,0.46438023,2889.7,2888.4,0.3584]
[1766077739144,1.14018099,2889.7,2888.5,0.375]
[1766077739439,0.46438023,2889.2,2887.9,0.3584]
[1766077739633,2.8333,2887.9,2886.6,0.03464283]
[1766077739870,2.8333,2887.9,2884.8,1.75635792]
[1766077739871,0.46438023,2887.9,2886.5,2.8776]
[1766077740031,0.46438023,2887.9,2885.1,0.1176068]
[1766077740032,2.8333,2886.9,2884.3,2.8776]
[1766077740231,0.08294596,2887.2,2884.4,0.2960546]
[1766077740232,30.0,2886.5,2884.4,0.2960546]
[1766077740437,0.08294596,2886.6,2883.6,3.06990358]
[1766077740438,0.08294596,2884.9,2883.8,0.01740783]
[1766077740752,0.08294596,2884.9,2883.6,3.06990358]
[1766077740753,0.08294596,2883.9,2883.6,1.141e-05]
[1766077740938,3.44448023,2883.6,2881.0,0.00583885]
[1766077741288,1.17932619,2884.3,2881.0,0.00583885]
[1766077741289,0.01740783,2883.5,2882.5,2.7495]
[1766077741573,7.909,2885.1,2883.5,2.7495]
[1766077741733,0.46438023,2885.1,2883.5,2.7495]
[1766077741934,0.46438023,2884.8,2883.6,0.2832446]
[1766077742135,0.405504,2884.7,2883.4,0.3666]
[1766077742453,30.0,2884.8,2884.4,0.001]
[1766077742586,0.54732619,2884.5,2882.9,0.3666]
[1766077742793,0.08294596,2883.3,2881.5,0.3666]
[1766077742990,22.512,2883.2,2881.7,0.3666]
[1766077743304,0.08294596,2885.3,2882.4,2.7495]
[1766077743594,0.08294596,2884.3,2882.7,0.3666]
[1766077743796,3.44448023,2884.1,2882.7,0.634]
[1766077743961,0.46438023,2884.8,2882.9,2.7495]
[1766077744162,0.08294596,2884.6,2883.0,0.27495]
[1766077744373,0.08294596,2883.7,2882.2,2.7495]
[1766077744702,0.08294596,2883.6,2882.5,0.3666]
[1766077744873,0.08294596,2885.1,2883.0,2.7495]
[1766077745083,7.64069597,2885.8,2883.0,2.7495]
[1766077745084,0.08294596,2886.4,2883.9,0.46438023]
[1766077745302,0.08294596,2886.6,2884.6,2.7495]
[1766077745614,0.635,2887.6,2885.3,2.7495]
[1766077745767,11.10326213,2888.1,2885.8,2.7495]
[1766077745966,10.62079597,2888.3,2886.3,0.3666]
[1766077746182,7.64069597,2888.9,2886.7,2.7495]
[1766077746500,30.0,2888.2,2886.9,0.3666]
[1766077746802,10.62079597,2888.8,2887.0,0.3666]
[1766077746989,11.07037419,2888.7,2887.0,0.3666]
[1766077747302,10.62079597,2888.8,2886.8,0.3666]
[1766077747501,30.0,2889.7,2887.3,2.7495]
[1766077747671,30.0,2889.7,2886.9,7.01077937]
[1766077747672,20.637,2889.4,2887.7,0.3666]
[1766077747867,30.0,2889.3,2887.8,0.3666]
[1766077748078,0.46438023,2889.2,2887.8,0.3666]
[1766077748313,30.0,2889.3,2887.8,0.3666]
[1766077748470,0.46438023,2889.0,2887.8,0.3666]
[1766077748671,3.46115684,2889.3,2887.8,0.3666]
[1766077748869,2.9801,2889.5,2887.8,3.4628288]
[1766077748870,30.0,2889.4,2887.8,3.4628288]
[1766077749133,30.0,2889.8,2888.2,0.3666]
[1766077749415,30.0,2889.8,2887.5,0.634]
[1766077749416,30.0,2888.8,2887.5,0.634]
[1766077749618,0.002,2888.3,2887.5,0.634]
[1766077749771,0.46438023,2888.8,2887.5,0.634]
[1766077749772,7.64069597,2888.8,2887.5,0.634]
[1766077749984,3.44448023,2888.1,2886.7,0.3666]
[1766077750190,3.44448023,2888.1,2886.5,0.634]
[1766077750191,0.46438023,2887.8,2886.5,0.634]
[1766077750402,0.46438023,2887.3,2886.5,0.634]
[1766077750605,0.46438023,2887.2,2885.6,0.3666]
[1766077750824,2.9801,2887.8,2885.9,2.7495]
[1766077750976,2.9801,2887.8,2886.2,0.3666]
[1766077751173,33.92662445,2888.3,2886.7,0.3666]
[1766077751409,0.46438023,2888.1,2886.8,0.634]
[1766077751620,3.46141276,2889.0,2887.0,0.3666]
[1766077751925,18.673,2889.6,2887.7,0.3666]
[1766077752087,0.08294596,2890.5,2887.7,0.3666]
[1766077752088,6.43887144,2891.2,2888.6,0.3666]
[1766077752286,1.41625134,2891.1,2889.1,2.7495]
[1766077752488,10.0,2891.7,2889.8,3.1423]
[1766077752821,10.46438023,2891.0,2889.8,0.634]
[1766077753027,0.08294596,2889.5,2888.3,0.3683]
[1766077753327,0.08294596,2889.5,2887.5,3.46320213]
[1766077753328,0.08294596,2889.4,2888.1,0.3683]
[1766077753476,0.08294596,2889.7,2888.0,0.634]
[1766077753477,3.1142,2889.2,2888.0,0.634]
[1766077753688,0.08294596,2888.8,2888.0,0.634]
[1766077753887,0.08294596,2888.8,2887.5,3.5106]
[1766077753888,0.08294596,2888.4,2887.5,0.634]
[1766077754130,0.08294596,2888.9,2887.5,0.634]
[1766077754326,11.44909858,2889.1,2887.5,0.634]
[1766077754327,1.83053285,2889.1,2887.5,0.634]
[1766077754626,1.36315262,2889.1,2887.6,6.96079787]
[1766077754821,0.08294596,2890.2,2887.1,0.08294596]
[1766077754822,3.1142,2889.5,2887.1,0.08294596]
[1766077755021,30.0,2888.6,2886.3,3.1423]
[1766077755227,3.1142,2889.0,2886.6,0.3683]
[1766077755425,0.08294596,2888.3,2886.7,0.3683]
[1766077755718,0.54732619,2888.3,2886.5,0.3683]
[1766077755918,10.46438023,2887.9,2886.5,0.3683]
[1766077756121,0.46438023,2887.7,2885.7,3.1423]
[1766077756417,0.46438023,2887.7,2885.8,0.634]
[1766077756418,0.08294596,2886.8,2885.8,0.634]
[1766077756620,0.08294596,2886.8,2885.6,0.634]
[1766077756621,30.54732619,2886.6,2885.6,0.634]
[1766077756790,0.08294596,2886.1,2884.4,0.3693]
[1766077756989,13.19714596,2886.3,2884.6,0.3683]
[1766077756990,3.1142,2886.3,2884.6,0.3683]
[1766077757189,23.688,2886.7,2884.9,3.1423]
[1766077757393,0.46438023,2887.1,2885.6,0.3683]
[1766077757625,30.46438023,2887.5,2885.8,0.3683]
[1766077757815,0.71694596,2888.1,2886.2,0.3683]
[1766077757816,0.08294596,2887.9,2886.2,0.3683]
[1766077757989,0.08294596,2887.4,2885.7,0.634]
[1766077758193,0.54732619,2886.2,2884.5,0.3683]
[1766077758396,3.1142,2885.7,2884.4,0.001]
[1766077758625,0.08294596,2885.6,2884.4,0.635]
[1766077758928,3.1142,2885.7,2884.4,0.635]
[1766077759114,0.46438023,2886.4,2884.8,0.3683]
[1766077759321,0.54732619,2886.2,2884.8,0.3683]
[1766077759627,0.08294596,2886.4,2884.5,3.1423]
[1766077759827,0.46438023,2886.0,2884.5,0.3683]
[1766077760028,30.0,2885.9,2884.5,0.3683]
[1766077760265,0.08294596,2885.4,2884.4,0.001]
[1766077760532,3.46632465,2884.9,2884.0,0.633]
[1766077760713,30.0,2884.2,2882.9,0.3683]
[1766077760915,30.0,2883.5,2882.0,0.3683]
[1766077761240,0.08294596,2882.5,2881.1,0.3683]
[1766077761395,0.08294596,2882.3,2880.4,1.0023]
[1766077762024,0.08294596,2881.9,2880.4,1.0023]
[1766077762326,0.08294596,2881.6,2881.0,3.885e-05]
[1766077762625,0.08294596,2882.1,2881.0,3.885e-05]
[1766077762803,0.08294596,2883.1,2881.1,0.634]
[1766077762998,0.08294596,2882.0,2881.2,0.3683]
[1766077763198,0.08294596,2882.4,2881.0,3.885e-05]
[1766077763199,0.08294596,2881.2,2881.0,3.885e-05]
[1766077763393,0.08294596,2881.2,2878.9,0.3683]
[1766077763394,0.08294596,2880.1,2878.9,0.3683]
[1766077763630,0.08294596,2880.1,2877.5,9.4115593]
[1766077763631,0.08294596,2879.0,2877.8,0.3683]
[1766077763796,0.08294596,2878.5,2877.8,0.3683]
[1766077763998,0.08294596,2877.7,2876.4,0.3683]
[1766077764207,0.08294596,2877.3,2876.4,0.3683]
[1766077764530,7.64895353,2878.2,2876.0,3.20075758]
[1766077764531,0.08294596,2878.4,2876.5,0.3683]
[1766077764698,30.0,2878.3,2876.7,0.3683]
[1766077764900,0.08294596,2877.1,2876.0,3.20075758]
[1766077765094,0.08294596,2877.3,2876.0,5.63396044]
[1766077765317,0.08294596,2877.2,2876.0,5.63396044]
[1766077765519,0.08294596,2877.2,2876.0,2.15690898]
[1766077765727,0.08294596,2877.8,2876.0,12.58806336]
[1766077765925,0.08294596,2878.3,2876.1,1.25880634]
[1766077766102,2.776,2878.0,2876.1,1.25880634]
[1766077766299,30.0,2875.4,2872.2,4.596e-05]
[1766077766602,0.364,2874.8,2873.9,0.08294596]
[1766077766825,0.00999999,2875.5,2874.0,0.08294596]
[1766077767134,25.822,2875.6,2873.7,0.1391]
[1766077767297,0.46438023,2875.5,2873.6,0.643]
[1766077767498,0.09294595,2875.4,2873.7,0.646]
[1766077767698,0.18055446,2876.0,2873.8,0.1391]
[1766077767901,0.18055446,2876.0,2874.8,0.002]
[1766077768156,0.18055446,2876.0,2874.9,0.647]
[1766077768829,0.09294595,2874.5,2872.0,37.64895353]
[1766077769036,0.46438023,2875.1,2871.9,6.96403078]
[1766077769037,0.00999999,2875.0,2873.0,0.08294596]
[1766077769343,0.00999999,2875.9,2873.7,0.1391]
[1766077769547,0.18055446,2876.0,2874.0,0.1391]
[1766077769846,0.19055445,2876.0,2874.3,0.1391]
[1766077770222,0.18055446,2876.0,2874.3,0.1391]
[1766077770827,0.18055446,2876.0,2874.5,0.1391]
[1766077771027,0.00999999,2877.0,2874.8,0.08294596]
[1766077771365,0.08294596,2878.9,2874.8,0.08294596]
[1766077771366,0.00999999,2877.6,2875.3,0.08294596]
[1766077771665,0.00999999,2876.6,2875.4,0.647]
[1766077771948,0.08294596,2876.5,2875.4,0.647]
[1766077772152,0.00999999,2876.1,2875.4,0.647]
[1766077772823,0.00999999,2876.1,2873.9,7.64895353]
[1766077772824,0.00999999,2874.2,2872.4,1.251]
[1766077773019,0.08294596,2874.8,2872.5,0.648]
[1766077773020,0.00999999,2874.0,2872.5,0.648]
[1766077773220,0.18059922,2874.9,2872.9,3.48080056]
[1766077773553,0.54732619,2876.3,2873.5,7.64895353]
[1766077773754,0.54732619,2876.3,2873.2,10.44124026]
[1766077773755,25.822,2877.7,2875.2,0.08294596]
[1766077773940,0.20484964,2877.6,2875.9,0.08294596]
[1766077774140,25.822,2878.1,2876.1,0.08294596]
[1766077774456,3.1142,2877.4,2876.2,0.648]
[1766077774750,3.1142,2877.4,2876.3,0.648]
[1766077775067,3.4782,2877.6,2876.3,0.648]
[1766077775273,3.1142,2877.2,2876.3,0.648]
[1766077775625,0.364,2877.6,2876.3,0.648]
[1766077775843,3.1142,2877.5,2876.3,0.648]
[1766077776360,3.519704,2877.3,2875.7,0.647]
[1766077776565,3.1142,2876.5,2875.7,0.647]
[1766077776859,3.1142,2876.0,2874.7,0.647]
[1766077777160,0.34782,2876.5,2874.7,0.647]
[1766077777359,0.34782,2876.5,2874.2,0.002]
[1766077777360,0.08294596,2875.7,2874.2,0.002]
[1766077777662,3.1142,2873.3,2871.8,0.647]
[1766077777828,0.08294596,2872.9,2871.8,0.647]
[1766077778027,0.405504,2873.5,2871.8,0.647]
[1766077778234,3.1142,2873.2,2871.8,0.647]
[1766077778656,0.364,2873.4,2871.8,0.647]
[1766077778830,3.1142,2874.0,2871.8,4.12912418]
[1766077779036,25.822,2873.6,2871.8,4.12903489]
[1766077779229,28.9362,2874.1,2871.9,0.08294596]
[1766077779467,3.4782,2873.7,2872.0,1.18609344]
[1766077779670,0.08294596,2872.0,2869.3,7.64895353]
[1766077779995,23.177,2871.2,2869.7,0.647]
[1766077780267,0.08294596,2871.4,2869.3,3.1423]
[1766077780472,3.4782,2871.3,2869.5,3.1423]
[1766077780833,3.56114596,2872.2,2869.9,0.3336]
[1766077781035,25.822,2873.4,2871.0,3.1423]
[1766077781252,25.822,2872.7,2870.8,3.1423]
[1766077781440,20.189,2872.4,2870.2,3.1423]
[1766077781643,14.18203512,2873.3,2870.9,0.46438023]
[1766077781866,28.9362,2873.1,2871.2,3.1423]
[1766077782065,3.1142,2872.3,2870.3,3.1423]
[1766077782272,26.26894596,2872.2,2870.2,3.7953]
[1766077782455,4.5214,2872.2,2870.3,0.37953]
[1766077782646,0.08294596,2872.0,2870.4,3.9772]
[1766077782971,4.5214,2872.2,2870.4,3.9772]
[1766077783153,3.48104005,2872.8,2870.4,3.9772]